{"text_format":"1","workbook":"xlsx","n_sheets":2,"sheets":["Standard","Metric"],"not_rendered":{"charts":0,"images":6,"macros":1,"external_links":0,"defined_names":2,"comments":2,"pivot_tables":0},"unopened":[],"bounds":{"document_bytes":16777216,"sheet_cells":100000,"rows_first":2000,"rows_last":500,"rows_between":2000,"halvings":0,"cell_chars":16384,"cell_head_chars":4096},"cells_cut":0,"cells_raw":0,"read":"whole","date_system":"1900"}

{"sheet":"Standard","index":0,"n_rows":54,"n_cols":11,"rows_kept":54,"cut":false,"hidden":false,"merged":[[0,0,0,11]]}
["IntegraSpec®  STANDARD Mitering Wall Formula "]
["MITERING IntegraSpec® WITH STANDARD PANELS WITH",null,null,null,null,null,{"$f":"+H36","v":10}," INCH CONCRETE CAVITY FOR"]
[{"$f":"+H35","v":45},"DEGREE CORNERS / ANGLE(S)"]
["DESCRIPTION"]
[]
["LH = Long Heel (1st part of panel \"A\")"]
["SP = Short Point (2nd part of panel \"A\")"]
["SH = Short Heel (1st part of panel \"B\")"]
["LP = Long Point (2nd part of panel \"B\")"]
[]
[]
["1st Panel cuts = SP +  LH = Panel \"A\""]
["2nd Panels cuts = LP + SH = Panel \"B\""]
[]
[]
[]
[]
[]
["MITERING FORMULA EXAMPLE FOR 6\" CONCRETE WALL:"]
[]
["d = TAN (Degree/2) X 11\" (overall wall width)",null,null,null,"SP = d/2 - 1/8\" + 16\""]
[null,null,null,null,"SH = SP - d"]
[null,null,null,null,"LP = SP + 16\""]
[null,null,null,null,"LH = LP - d"]
["45 Degree CORNER MITER CUT EXAMPLE "]
[]
[null,null,null,null,"Cutting Angle = 22.5 Degree"]
[]
["d = TAN 22.5º X 11\" = 4.56",null,null,null,"SP = 4.56/2 - 0.125 + 16\" = 18.153\"",null,null,null,"=",{"$f":"CEILING(18.153,0.03125)","v":18.15625},"\""]
[null,null,null,null,"SH = 18.153\" - 4.56 = 13.59\"",null,null,null,"=",{"$f":"CEILING(13.5968,0.03125)","v":13.625},"\""]
[null,null,null,null,"LP = 18.153\" + 16\" = 34.15\"",null,null,null,"=",{"$f":"CEILING(34.15,0.03125)","v":34.15625},"\""]
[null,null,null,null,"LH = 34.15\" - 4.56 = 29.59\"",null,null,null,"=",{"$f":"CEILING(29.5968,0.03125)","v":29.625},"\""]
[]
["(Excel Spreadsheet application)"]
["ENTER DEGREE OF ANGLE / CORNER BLOCK DESIRED IN BOX",null,null,null,null,null,null,45," Degree (angle)"]
[null,null,null,null,null,"ENTER CONCRETE CORE / CAVITY SIZE IN BOX",null,10," Inch (concrete cavity)"]
[null,null,null,null,null,null,"(Panel \"A\") SP =",{"$f":"B39/2 - 0.125+16","v":18.981601717798213},"\" =",{"$f":"CEILING(H37,0.03125)","v":19},"\""]
[null,{"$f":"H36+5","v":15},null,{"$f":"H35/2","v":22.5},{"$f":"RADIANS(D38)","v":0.39269908169872414},null,"(Panel \"B\") SH =",{"$f":"H37-B39","v":12.768398282201787},"\" =",{"$f":"CEILING(H38,0.03125)","v":12.78125},"\""]
[{"$f":"TAN(E38)","v":0.41421356237309503},{"$f":"A39*B38","v":6.2132034355964256},null,{"$f":"J39","v":35},null,null,"(Panel \"B\") LP =",{"$f":"H37+16","v":34.981601717798213},"\" =",{"$f":"CEILING(H39,0.03125)","v":35},"\""]
[{"$f":"J37","v":19},null,null,null,null,null,"(Panel \"A\") LH =",{"$f":"H39-B39","v":28.768398282201787},"\" =",{"$f":"CEILING(H40,0.03125)","v":28.78125},"\""]
[]
[null,null,null,null,null,"CUTTING PROCEDURES: "]
[]
[null,null,null,null,null,null,"Set Miter Saw @",{"$f":"D38","v":22.5},"Degree"]
[]
[null,null,null,{"$f":"J40","v":28.78125},null,"1st Panel: Cut at measurement intersection of "]
[null,null,null,null,null,"SP with your saw set at cutting angle shown  "]
[null,null,null,null,null,"above.  Piece remaining = LH."]
[]
[null,null,null,null,null,"2nd Panel: Cut at measurement intersection of "]
[null,null,null,null,null,"LP with your saw set at cutting angle shown "]
[null,null,{"$f":"J38","v":12.78125},null,null,"above.  Piece remaining = SH."]
[]
[null,null,null,null,null,null,null,null,null,"Copyright IntegraSpec Corp. - Appendix \"D\""]

{"sheet":"Metric","index":1,"n_rows":54,"n_cols":11,"rows_kept":54,"cut":false,"hidden":true,"merged":[[0,0,0,11]]}
["IntegraSpec®  METRIC Mitering Wall Formula "]
["MITERING IntegraSpec® WITH STANDARD PANELS WITH",null,null,null,null,null,{"$f":"+H36","v":152},"mm CONCRETE CAVITY FOR"]
[{"$f":"+H35","v":45},"DEGREE CORNERS / ANGLE(S)"]
["DESCRIPTION"]
[]
["LH = Long Heel (1st part of panel \"A\")"]
["SP = Short Point (2nd part of panel \"A\")"]
["SH = Short Heel (1st part of panel \"B\")"]
["LP = Long Point (2nd part of panel \"B\")"]
[]
[]
["1st Panel cuts = SP +  LH = Panel \"A\""]
["2nd Panels cuts = LP + SH = Panel \"B\""]
[]
[]
[]
[]
[]
["MITERING FORMULA EXAMPLE FOR 152 mm CONCRETE WALL:"]
[]
["d = TAN (Degree/2) X 280 mm (overall wall width)",null,null,null,"SP = d/2 - 3 mm + 406 mm"]
[null,null,null,null,"SH = SP - d"]
[null,null,null,null,"LP = SP + 406 mm"]
[null,null,null,null,"LH = LP - d"]
["45 Degree CORNER MITER CUT EXAMPLE "]
[]
[null,null,null,null,"Cutting Angle = 22.5 Degree"]
[]
["d = TAN 22.5º X 280 mm = 116",null,null,null,"SP = 116/2 - 3 + 406 = 461 mm",null,null,null,"=",461,"mm"]
[null,null,null,null,"SH = 461 mm - 116 = 345 mm",null,null,null,"=",345,"mm"]
[null,null,null,null,"LP = 461 mm + 406 mm = 867 mm",null,null,null,"=",867,"mm"]
[null,null,null,null,"LH = 867 mm - 116 = 751 mm",null,null,null,"=",751,"mm"]
[]
["(Excel Spreadsheet application)"]
["ENTER DEGREE OF ANGLE / CORNER BLOCK DESIRED IN BOX",null,null,null,null,null,null,45," Degree (angle)"]
[null,null,null,null,null,"ENTER CONCRETE CORE / CAVITY SIZE IN BOX",null,152,"mm (concrete cavity)"]
[null,null,null,null,null,null,"(Panel \"A\") SP =",{"$f":"B39/2 -3+406","v":460.78279195104676}," =",{"$f":"ROUND(H37,0)","v":461},"mm"]
[null,{"$f":"H36+127","v":279},null,{"$f":"H35/2","v":22.5},{"$f":"RADIANS(D38)","v":0.39269908169872414},null,"(Panel \"B\") SH =",{"$f":"H37-B39","v":345.21720804895324}," =",{"$f":"ROUND(H38,0)","v":345},"mm"]
[{"$f":"TAN(E38)","v":0.41421356237309503},{"$f":"A39*B38","v":115.56558390209351},null,{"$f":"J39","v":867},null,null,"(Panel \"B\") LP =",{"$f":"H37+406","v":866.78279195104676}," =",{"$f":"ROUND(H39,0)","v":867},"mm"]
[{"$f":"J37","v":461},null,null,null,null,null,"(Panel \"A\") LH =",{"$f":"H39-B39","v":751.21720804895324}," =",{"$f":"ROUND(H40,0)","v":751},"mm"]
[]
[null,null,null,null,null,"CUTTING PROCEDURES: "]
[]
[null,null,null,null,null,null,"Set Miter Saw @",{"$f":"D38","v":22.5},"Degree"]
[]
[null,null,null,{"$f":"J40","v":751},null,"1st Panel: Cut at measurement intersection of "]
[null,null,null,null,null,"SP with your saw set at cutting angle shown  "]
[null,null,null,null,null,"above.  Piece remaining = LH."]
[]
[null,null,null,null,null,"2nd Panel: Cut at measurement intersection of "]
[null,null,null,null,null,"LP with your saw set at cutting angle shown "]
[null,null,{"$f":"J38","v":345},null,null,"above.  Piece remaining = SH."]
[]
[null,null,null,null,null,null,null,null,null,"Copyright Phil-Insul Corporation (PIC)      Updated Dec., 2006 - Appendix \"D\""]